[Event "Titled Tuesday Blitz March 14 Early 2023"]
[White "Ginzburg, Yakov"]
[Black "TimGrutter03"]
[WhiteFideId "4157176"]
[WhiteElo "2305"]
[BlackElo "2487"]
[Result "1-0"]
[Round "11"]
[TimeControl "180+2"]
[Date "2023.03.14"]
[WhiteClock "0:00:15"]
[BlackClock "0:00:03"]

1. e4 {[%clk 0:03:00]}  g6 {[%clk 0:02:53]} 2. h4 {[%clk 0:02:59]}  h6 {[%clk 0:02:52]} 3. h5 {[%clk 0:02:59]}  g5 {[%clk 0:02:52]} 4. d4 {[%clk 0:02:59]}  Bg7 {[%clk 0:02:51]} 5. Bc4 {[%clk 0:02:58]}  c6 {[%clk 0:02:44]} 6. Nc3 {[%clk 0:02:57]}  d6 {[%clk 0:02:39]} 7. Be3 {[%clk 0:02:53]}  Nf6 {[%clk 0:02:36]} 8. e5 {[%clk 0:02:38]}  dxe5 {[%clk 0:02:32]} 9. dxe5 {[%clk 0:02:38]}  Qxd1+ {[%clk 0:02:33]} 10. Rxd1 {[%clk 0:02:38]}  Ng4 {[%clk 0:02:33]} 11. e6 {[%clk 0:02:33]}  Bxe6 {[%clk 0:02:29]} 12. Bxe6 {[%clk 0:02:33]}  fxe6 {[%clk 0:02:30]} 13. Bd4 {[%clk 0:02:28]}  Bxd4 {[%clk 0:02:14]} 14. Rxd4 {[%clk 0:02:27]}  Nf6 {[%clk 0:02:15]} 15. Nf3 {[%clk 0:02:16]}  Nbd7 {[%clk 0:02:09]} 16. Kd2 {[%clk 0:01:58]}  e5 {[%clk 0:01:59]} 17. Rb4 {[%clk 0:01:58]}  O-O-O {[%clk 0:01:55]} 18. Kc1 {[%clk 0:01:57]}  Rhf8 {[%clk 0:01:51]} 19. Ne4 {[%clk 0:01:51]}  Nd5 {[%clk 0:01:46]} 20. Ra4 {[%clk 0:01:47]}  Rf4 {[%clk 0:01:33]} 21. Re1 {[%clk 0:01:37]}  Kb8 {[%clk 0:01:28]} 22. Nfd2 {[%clk 0:01:29]}  Rf7 {[%clk 0:01:06]} 23. g3 {[%clk 0:01:17]}  N7f6 {[%clk 0:01:01]} 24. Ra3 {[%clk 0:01:06]}  Nxh5 {[%clk 0:00:50]} 25. Rd3 {[%clk 0:01:04]}  Rff8 {[%clk 0:00:38]} 26. Rh1 {[%clk 0:00:57]}  Ndf6 {[%clk 0:00:18]} 27. Rxd8+ {[%clk 0:00:50]}  Rxd8 {[%clk 0:00:18]} 28. Nxf6 {[%clk 0:00:51]}  Nxf6 {[%clk 0:00:18]} 29. Rxh6 {[%clk 0:00:51]}  Ng4 {[%clk 0:00:18]} 30. Rh7 {[%clk 0:00:50]}  Nxf2 {[%clk 0:00:18]} 31. Rxe7 {[%clk 0:00:49]}  Rh8 {[%clk 0:00:13]} 32. c4 {[%clk 0:00:40]}  e4 {[%clk 0:00:09]} 33. Nxe4 {[%clk 0:00:37]}  Rh1+ {[%clk 0:00:09]} 34. Kc2 {[%clk 0:00:37]}  Re1 {[%clk 0:00:09]} 35. Re8+ {[%clk 0:00:31]}  Kc7 {[%clk 0:00:09]} 36. Nd6 {[%clk 0:00:31]}  Rg1 {[%clk 0:00:08]} 37. Nf5 {[%clk 0:00:30]}  Nh1 {[%clk 0:00:06]} 38. Re7+ {[%clk 0:00:29]}  Kb6 {[%clk 0:00:04]} 39. Nd6 {[%clk 0:00:19]}  Nxg3 {[%clk 0:00:04]} 40. Rxb7+ {[%clk 0:00:19]}  Kc5 {[%clk 0:00:04]} 41. Rd7 {[%clk 0:00:17]}  Rg2+ {[%clk 0:00:03]} 42. Kd3 {[%clk 0:00:15]} 1-0


[Site "https://www.chess.com"]

[Event "Titled Tuesday Blitz March 14 Early 2023"]
[White "Kozin, Yuri"]
[Black "aidenzhouu"]
[WhiteFideId "4129920"]
[WhiteElo "2522"]
[BlackElo "2422"]
[Result "0-1"]
[Round "11"]
[TimeControl "180+2"]
[Date "2023.03.14"]
[WhiteClock "0:00:02"]
[BlackClock "0:00:09"]

1. e4 {[%clk 0:03:00]}  c6 {[%clk 0:02:59]} 2. d4 {[%clk 0:03:00]}  d5 {[%clk 0:03:00]} 3. exd5 {[%clk 0:03:01]}  cxd5 {[%clk 0:03:00]} 4. c4 {[%clk 0:03:02]}  Nf6 {[%clk 0:03:00]} 5. Nc3 {[%clk 0:03:02]}  Nc6 {[%clk 0:03:00]} 6. Bg5 {[%clk 0:03:03]}  dxc4 {[%clk 0:02:54]} 7. d5 {[%clk 0:03:04]}  Ne5 {[%clk 0:02:53]} 8. Qd4 {[%clk 0:03:04]}  h6 {[%clk 0:02:45]} 9. Be3 {[%clk 0:03:03]}  Ng6 {[%clk 0:02:24]} 10. Bxc4 {[%clk 0:03:02]}  a6 {[%clk 0:02:06]} 11. a4 {[%clk 0:02:58]}  Ng4 {[%clk 0:02:04]} 12. Nf3 {[%clk 0:02:49]}  Nxe3 {[%clk 0:01:56]} 13. Qxe3 {[%clk 0:02:49]}  Qc7 {[%clk 0:01:52]} 14. Bb3 {[%clk 0:02:43]}  Qf4 {[%clk 0:01:51]} 15. Qb6 {[%clk 0:02:18]}  Ne5 {[%clk 0:01:39]} 16. Nxe5 {[%clk 0:02:07]}  Qxe5+ {[%clk 0:01:39]} 17. Kf1 {[%clk 0:02:07]}  Bf5 {[%clk 0:01:12]} 18. a5 {[%clk 0:01:51]}  f6 {[%clk 0:00:44]} 19. d6 {[%clk 0:01:18]}  Qxd6 {[%clk 0:00:39]} 20. Qxb7 {[%clk 0:00:50]}  Rb8 {[%clk 0:00:39]} 21. Ba4+ {[%clk 0:00:50]}  Kf7 {[%clk 0:00:37]} 22. Qf3 {[%clk 0:00:27]}  Qd3+ {[%clk 0:00:28]} 23. Qxd3 {[%clk 0:00:21]}  Bxd3+ {[%clk 0:00:29]} 24. Kg1 {[%clk 0:00:22]}  Rxb2 {[%clk 0:00:29]} 25. h4 {[%clk 0:00:22]}  e5 {[%clk 0:00:28]} 26. Rh3 {[%clk 0:00:21]}  e4 {[%clk 0:00:21]} 27. Re1 {[%clk 0:00:19]}  f5 {[%clk 0:00:18]} 28. f3 {[%clk 0:00:17]}  Bc5+ {[%clk 0:00:18]} 29. Kh1 {[%clk 0:00:17]}  Bf2 {[%clk 0:00:17]} 30. Rd1 {[%clk 0:00:15]}  Rc8 {[%clk 0:00:13]} 31. fxe4 {[%clk 0:00:09]}  fxe4 {[%clk 0:00:13]} 32. Nd5 {[%clk 0:00:09]}  Be2 {[%clk 0:00:10]} 33. Ra1 {[%clk 0:00:09]}  Rd2 {[%clk 0:00:08]} 34. Nb6 {[%clk 0:00:07]}  Bxb6 {[%clk 0:00:07]} 35. axb6 {[%clk 0:00:07]}  Bg4 {[%clk 0:00:08]} 36. Bb3+ {[%clk 0:00:05]}  Be6 {[%clk 0:00:07]} 37. Bxe6+ {[%clk 0:00:03]}  Kxe6 {[%clk 0:00:07]} 38. Rg3 {[%clk 0:00:04]}  Rb8 {[%clk 0:00:07]} 39. Rxa6 {[%clk 0:00:03]}  g5 {[%clk 0:00:06]} 40. hxg5 {[%clk 0:00:03]}  hxg5 {[%clk 0:00:06]} 41. Rxg5 {[%clk 0:00:04]}  e3 {[%clk 0:00:07]} 42. b7+ {[%clk 0:00:03]}  Kd7 {[%clk 0:00:07]} 43. Ra7 {[%clk 0:00:03]}  Rd1+ {[%clk 0:00:06]} 44. Kh2 {[%clk 0:00:03]}  e2 {[%clk 0:00:07]} 45. Rg7+ {[%clk 0:00:03]}  Kc6 {[%clk 0:00:07]} 46. Rg6+ {[%clk 0:00:03]}  Kc7 {[%clk 0:00:08]} 47. Rg7+ {[%clk 0:00:03]}  Kb6 {[%clk 0:00:09]} 48. Ra2 {[%clk 0:00:02]}  e1=Q {[%clk 0:00:08]} 49. Rb2+ {[%clk 0:00:02]}  Kc5 {[%clk 0:00:09]} 50. Rc2+ {[%clk 0:00:02]}  Kb4 {[%clk 0:00:09]} 51. Rg4+ {[%clk 0:00:02]}  Kb3 {[%clk 0:00:09]} 52. Rc7 {[%clk 0:00:02]}  Rh8+ {[%clk 0:00:09]} 0-1


[Site "https://www.chess.com"]

[Event "Titled Tuesday Blitz March 14 Early 2023"]
[White "Turzo, Attila"]
[Black "Bas Mas, Jose Joaquin"]
[WhiteFideId "704954"]
[BlackFideId "22219064"]
[WhiteElo "2515"]
[BlackElo "2233"]
[Result "1-0"]
[Round "11"]
[TimeControl "180+2"]
[Date "2023.03.14"]
[WhiteClock "0:00:09"]
[BlackClock "0:00:37"]

1. e4 {[%clk 0:03:00]}  e6 {[%clk 0:02:59]} 2. d4 {[%clk 0:03:00]}  d5 {[%clk 0:03:00]} 3. Bd3 {[%clk 0:03:00]}  dxe4 {[%clk 0:02:58]} 4. Bxe4 {[%clk 0:03:00]}  Nf6 {[%clk 0:02:59]} 5. Bf3 {[%clk 0:03:00]}  Nbd7 {[%clk 0:02:59]} 6. Ne2 {[%clk 0:03:00]}  Be7 {[%clk 0:03:00]} 7. O-O {[%clk 0:03:00]}  O-O {[%clk 0:03:00]} 8. c4 {[%clk 0:03:00]}  c6 {[%clk 0:03:01]} 9. Nbc3 {[%clk 0:03:00]}  a5 {[%clk 0:03:01]} 10. Bf4 {[%clk 0:02:59]}  Nb6 {[%clk 0:03:00]} 11. b3 {[%clk 0:02:58]}  a4 {[%clk 0:03:01]} 12. Qd2 {[%clk 0:02:49]}  Bb4 {[%clk 0:02:57]} 13. Qb2 {[%clk 0:02:38]}  a3 {[%clk 0:02:53]} 14. Qc2 {[%clk 0:02:37]}  Re8 {[%clk 0:02:52]} 15. Rad1 {[%clk 0:02:36]}  Nbd7 {[%clk 0:02:50]} 16. Bg5 {[%clk 0:02:28]}  h6 {[%clk 0:02:50]} 17. Bf4 {[%clk 0:02:14]}  Nf8 {[%clk 0:02:47]} 18. Ng3 {[%clk 0:02:12]}  Bd6 {[%clk 0:02:45]} 19. Bxd6 {[%clk 0:02:11]}  Qxd6 {[%clk 0:02:46]} 20. c5 {[%clk 0:02:09]}  Qc7 {[%clk 0:02:44]} 21. Rfe1 {[%clk 0:02:07]}  e5 {[%clk 0:02:29]} 22. dxe5 {[%clk 0:02:01]}  Rxe5 {[%clk 0:02:27]} 23. Nce4 {[%clk 0:01:58]}  Nxe4 {[%clk 0:02:24]} 24. Nxe4 {[%clk 0:01:59]}  Bf5 {[%clk 0:02:23]} 25. Qc3 {[%clk 0:01:59]}  Bxe4 {[%clk 0:02:21]} 26. Rxe4 {[%clk 0:01:56]}  Rxe4 {[%clk 0:02:19]} 27. Bxe4 {[%clk 0:01:57]}  Re8 {[%clk 0:02:19]} 28. Bf3 {[%clk 0:01:54]}  Qe5 {[%clk 0:02:16]} 29. Qxe5 {[%clk 0:01:47]}  Rxe5 {[%clk 0:02:15]} 30. b4 {[%clk 0:01:46]}  g5 {[%clk 0:02:05]} 31. Kf1 {[%clk 0:01:44]}  Ne6 {[%clk 0:02:01]} 32. Rd7 {[%clk 0:01:20]}  b6 {[%clk 0:01:41]} 33. cxb6 {[%clk 0:00:43]}  Rb5 {[%clk 0:01:42]} 34. b7 {[%clk 0:00:40]}  Rxb4 {[%clk 0:01:36]} 35. Bxc6 {[%clk 0:00:40]}  Kg7 {[%clk 0:01:30]} 36. Bd5 {[%clk 0:00:38]}  Kf6 {[%clk 0:01:30]} 37. Bxe6 {[%clk 0:00:32]}  Kxe6 {[%clk 0:01:26]} 38. Rd3 {[%clk 0:00:31]}  Rxb7 {[%clk 0:01:24]} 39. Rxa3 {[%clk 0:00:31]}  Rb2 {[%clk 0:01:25]} 40. g4 {[%clk 0:00:29]}  Ke5 {[%clk 0:01:23]} 41. Kg2 {[%clk 0:00:25]}  Kf4 {[%clk 0:01:20]} 42. h3 {[%clk 0:00:25]}  f6 {[%clk 0:01:13]} 43. Rf3+ {[%clk 0:00:14]}  Ke5 {[%clk 0:01:13]} 44. Re3+ {[%clk 0:00:13]}  Kd5 {[%clk 0:01:11]} 45. a3 {[%clk 0:00:13]}  Ra2 {[%clk 0:01:11]} 46. Kg3 {[%clk 0:00:14]}  Ra1 {[%clk 0:01:10]} 47. f3 {[%clk 0:00:13]}  Rg1+ {[%clk 0:01:08]} 48. Kh2 {[%clk 0:00:12]}  Ra1 {[%clk 0:01:07]} 49. Kg2 {[%clk 0:00:11]}  Ra2+ {[%clk 0:01:08]} 50. Kg3 {[%clk 0:00:11]}  Ra1 {[%clk 0:01:08]} 51. h4 {[%clk 0:00:12]}  gxh4+ {[%clk 0:01:02]} 52. Kxh4 {[%clk 0:00:12]}  Rh1+ {[%clk 0:01:03]} 53. Kg3 {[%clk 0:00:12]}  h5 {[%clk 0:01:03]} 54. gxh5 {[%clk 0:00:10]}  Rxh5 {[%clk 0:01:02]} 55. a4 {[%clk 0:00:11]}  Rh1 {[%clk 0:00:57]} 56. Ra3 {[%clk 0:00:10]}  Rh8 {[%clk 0:00:56]} 57. a5 {[%clk 0:00:11]}  Ra8 {[%clk 0:00:54]} 58. a6 {[%clk 0:00:10]}  Ra7 {[%clk 0:00:54]} 59. Kf4 {[%clk 0:00:11]}  Ke6 {[%clk 0:00:55]} 60. Ra4 {[%clk 0:00:11]}  Ke7 {[%clk 0:00:51]} 61. Kf5 {[%clk 0:00:11]}  Kf7 {[%clk 0:00:52]} 62. f4 {[%clk 0:00:09]}  Ke7 {[%clk 0:00:52]} 63. Kg6 {[%clk 0:00:09]}  Ke6 {[%clk 0:00:53]} 64. f5+ {[%clk 0:00:08]}  Ke7 {[%clk 0:00:53]} 65. Ra5 {[%clk 0:00:08]}  Ra8 {[%clk 0:00:44]} 66. a7 {[%clk 0:00:09]}  Kf8 {[%clk 0:00:39]} 67. Kxf6 {[%clk 0:00:09]}  Ke8 {[%clk 0:00:39]} 68. Kg7 {[%clk 0:00:09]}  Ke7 {[%clk 0:00:37]} 69. f6+ {[%clk 0:00:09]}  Ke6 {[%clk 0:00:37]} 70. f7 {[%clk 0:00:09]} 1-0


[Site "https://www.chess.com"]

[Event "Titled Tuesday Blitz March 14 Early 2023"]
[White "Skvortsov, Andrei"]
[Black "Mirzanurov, Bulat"]
[WhiteFideId "24108600"]
[BlackFideId "4184521"]
[WhiteElo "2259"]
[BlackElo "2019"]
[Result "1-0"]
[Round "11"]
[TimeControl "180+2"]
[Date "2023.03.14"]
[WhiteClock "0:01:44"]
[BlackClock "0:00:01"]

1. Nf3 {[%clk 0:03:00]}  d5 {[%clk 0:02:59]} 2. c4 {[%clk 0:03:00]}  dxc4 {[%clk 0:02:55]} 3. e3 {[%clk 0:03:01]}  e6 {[%clk 0:02:47]} 4. Bxc4 {[%clk 0:03:00]}  Nf6 {[%clk 0:02:46]} 5. O-O {[%clk 0:02:59]}  c5 {[%clk 0:02:45]} 6. d4 {[%clk 0:02:59]}  a6 {[%clk 0:02:44]} 7. dxc5 {[%clk 0:02:55]}  Bxc5 {[%clk 0:02:43]} 8. Qxd8+ {[%clk 0:02:54]}  Kxd8 {[%clk 0:02:44]} 9. Be2 {[%clk 0:02:44]}  Ke7 {[%clk 0:02:41]} 10. Nfd2 {[%clk 0:02:39]}  Nbd7 {[%clk 0:02:37]} 11. Nb3 {[%clk 0:02:39]}  b6 {[%clk 0:02:34]} 12. Nxc5 {[%clk 0:02:38]}  bxc5 {[%clk 0:02:35]} 13. Nd2 {[%clk 0:02:38]}  a5 {[%clk 0:02:35]} 14. Bf3 {[%clk 0:02:37]}  Rb8 {[%clk 0:02:25]} 15. Nc4 {[%clk 0:02:36]}  Ba6 {[%clk 0:02:21]} 16. Nxa5 {[%clk 0:02:36]}  Bxf1 {[%clk 0:02:14]} 17. Nc6+ {[%clk 0:02:36]}  Kd6 {[%clk 0:02:10]} 18. Nxb8 {[%clk 0:02:37]}  Bxg2 {[%clk 0:01:32]} 19. Kxg2 {[%clk 0:02:17]}  Rxb8 {[%clk 0:01:30]} 20. b3 {[%clk 0:02:16]}  e5 {[%clk 0:01:15]} 21. Be2 {[%clk 0:02:16]}  e4 {[%clk 0:01:12]} 22. Bb2 {[%clk 0:02:15]}  Ne5 {[%clk 0:01:07]} 23. Rd1+ {[%clk 0:02:15]}  Ke6 {[%clk 0:01:06]} 24. Bc3 {[%clk 0:02:15]}  Nd5 {[%clk 0:00:41]} 25. Be1 {[%clk 0:02:07]}  Nb4 {[%clk 0:00:37]} 26. Ra1 {[%clk 0:02:01]}  Nc2 {[%clk 0:00:30]} 27. Rc1 {[%clk 0:02:00]}  Nd3 {[%clk 0:00:21]} 28. Bxd3 {[%clk 0:01:58]}  exd3 {[%clk 0:00:21]} 29. Bc3 {[%clk 0:01:58]}  Ra8 {[%clk 0:00:19]} 30. a4 {[%clk 0:01:57]}  Rb8 {[%clk 0:00:18]} 31. Rb1 {[%clk 0:01:52]}  Na3 {[%clk 0:00:14]} 32. Rb2 {[%clk 0:01:52]}  Nc4 {[%clk 0:00:12]} 33. Rb1 {[%clk 0:01:51]}  Ne5 {[%clk 0:00:08]} 34. Kf1 {[%clk 0:01:49]}  c4 {[%clk 0:00:07]} 35. b4 {[%clk 0:01:49]}  Nf3 {[%clk 0:00:07]} 36. b5 {[%clk 0:01:48]}  Ne5 {[%clk 0:00:05]} 37. a5 {[%clk 0:01:47]}  Nd7 {[%clk 0:00:05]} 38. b6 {[%clk 0:01:46]}  Nc5 {[%clk 0:00:04]} 39. Rb4 {[%clk 0:01:45]}  Ra8 {[%clk 0:00:03]} 40. Rxc4 {[%clk 0:01:45]}  Nb3 {[%clk 0:00:02]} 41. Ra4 {[%clk 0:01:44]}  d2 {[%clk 0:00:02]} 42. Ke2 {[%clk 0:01:44]}  Rd8 {[%clk 0:00:02]} 43. Bd4 {[%clk 0:01:45]}  Nxd4+ {[%clk 0:00:01]} 44. Rxd4 {[%clk 0:01:44]} 1-0


[Site "https://www.chess.com"]

[Event "Titled Tuesday Blitz March 14 Early 2023"]
[White "Garv Gaur"]
[Black "Klepikov, Nikita"]
[WhiteFideId "45030839"]
[BlackFideId "24145220"]
[WhiteElo "2068"]
[BlackElo "2025"]
[Result "1-0"]
[Round "11"]
[TimeControl "180+2"]
[Date "2023.03.14"]
[WhiteClock "0:01:28"]
[BlackClock "0:00:12"]

1. Nf3 {[%clk 0:03:00]}  Nf6 {[%clk 0:02:56]} 2. g3 {[%clk 0:03:00]}  g6 {[%clk 0:02:56]} 3. Bg2 {[%clk 0:03:00]}  Bg7 {[%clk 0:02:57]} 4. O-O {[%clk 0:03:00]}  O-O {[%clk 0:02:57]} 5. d4 {[%clk 0:03:00]}  d6 {[%clk 0:02:57]} 6. c4 {[%clk 0:03:00]}  Nbd7 {[%clk 0:02:58]} 7. Nc3 {[%clk 0:02:59]}  e5 {[%clk 0:02:58]} 8. e4 {[%clk 0:03:00]}  exd4 {[%clk 0:02:59]} 9. Nxd4 {[%clk 0:03:01]}  Re8 {[%clk 0:02:59]} 10. h3 {[%clk 0:03:01]}  Nc5 {[%clk 0:02:59]} 11. Re1 {[%clk 0:03:01]}  h6 {[%clk 0:03:00]} 12. Bf4 {[%clk 0:02:55]}  Ne6 {[%clk 0:02:44]} 13. Be3 {[%clk 0:02:55]}  Ng5 {[%clk 0:02:41]} 14. Bxg5 {[%clk 0:02:52]}  hxg5 {[%clk 0:02:42]} 15. Qd2 {[%clk 0:02:52]}  g4 {[%clk 0:02:28]} 16. h4 {[%clk 0:02:52]}  Nd7 {[%clk 0:02:07]} 17. Rad1 {[%clk 0:02:46]}  Ne5 {[%clk 0:02:07]} 18. b3 {[%clk 0:02:45]}  a6 {[%clk 0:01:59]} 19. Nd5 {[%clk 0:02:44]}  Rb8 {[%clk 0:01:41]} 20. Kh1 {[%clk 0:02:31]}  Kh7 {[%clk 0:01:41]} 21. Ne2 {[%clk 0:02:11]}  Bd7 {[%clk 0:01:35]} 22. Nef4 {[%clk 0:02:11]}  Rh8 {[%clk 0:01:31]} 23. Kg1 {[%clk 0:02:10]}  b6 {[%clk 0:01:30]} 24. Qc2 {[%clk 0:02:04]}  Kg8 {[%clk 0:01:26]} 25. Nd3 {[%clk 0:02:04]}  g5 {[%clk 0:01:21]} 26. hxg5 {[%clk 0:01:50]}  Qxg5 {[%clk 0:01:21]} 27. N5f4 {[%clk 0:01:46]}  Nf3+ {[%clk 0:01:10]} 28. Kf1 {[%clk 0:01:46]}  Rh2 {[%clk 0:00:25]} 29. Re3 {[%clk 0:01:43]}  Nd4 {[%clk 0:00:23]} 30. Qc1 {[%clk 0:01:40]}  Qh6 {[%clk 0:00:15]} 31. Ke1 {[%clk 0:01:40]}  Rxg2 {[%clk 0:00:13]} 32. Nxg2 {[%clk 0:01:37]}  Qh1+ {[%clk 0:00:13]} 33. Kd2 {[%clk 0:01:38]}  Qxg2 {[%clk 0:00:14]} 34. Rh1 {[%clk 0:01:28]}  Qxf2+ {[%clk 0:00:12]} 35. Nxf2 {[%clk 0:01:28]} 1-0


[Site "https://www.chess.com"]

[Event "Titled Tuesday Blitz March 14 Early 2023"]
[White "Buscar, Michael"]
[Black "Manukian, Artak"]
[WhiteFideId "2603616"]
[BlackFideId "13301373"]
[WhiteElo "2010"]
[BlackElo "2130"]
[Result "1/2-1/2"]
[Round "11"]
[TimeControl "180+2"]
[Date "2023.03.14"]
[WhiteClock "0:00:43"]
[BlackClock "0:01:52"]

1. d4 {[%clk 0:02:53]}  d5 {[%clk 0:02:59]} 2. c4 {[%clk 0:02:53]}  dxc4 {[%clk 0:03:00]} 3. e3 {[%clk 0:02:53]}  e5 {[%clk 0:03:00]} 4. Bxc4 {[%clk 0:02:52]}  exd4 {[%clk 0:03:00]} 5. exd4 {[%clk 0:02:51]}  Nf6 {[%clk 0:03:01]} 6. Nf3 {[%clk 0:02:49]}  Be7 {[%clk 0:02:59]} 7. O-O {[%clk 0:02:48]}  O-O {[%clk 0:03:00]} 8. h3 {[%clk 0:02:47]}  a6 {[%clk 0:02:56]} 9. Nc3 {[%clk 0:02:45]}  b5 {[%clk 0:02:56]} 10. Bd3 {[%clk 0:02:44]}  Bb7 {[%clk 0:02:56]} 11. Re1 {[%clk 0:02:44]}  Nbd7 {[%clk 0:02:53]} 12. Ne5 {[%clk 0:02:43]}  Nb6 {[%clk 0:02:49]} 13. Bg5 {[%clk 0:02:24]}  h6 {[%clk 0:02:46]} 14. Be3 {[%clk 0:02:11]}  Nbd5 {[%clk 0:02:43]} 15. Nxd5 {[%clk 0:02:05]}  Nxd5 {[%clk 0:02:42]} 16. Bd2 {[%clk 0:02:05]}  Bf6 {[%clk 0:02:37]} 17. Qg4 {[%clk 0:02:02]}  Bxe5 {[%clk 0:02:24]} 18. dxe5 {[%clk 0:01:58]}  Nf4 {[%clk 0:02:23]} 19. Bxf4 {[%clk 0:01:56]}  Qxd3 {[%clk 0:02:22]} 20. Bxh6 {[%clk 0:01:57]}  Qg6 {[%clk 0:02:15]} 21. Qxg6 {[%clk 0:01:52]}  fxg6 {[%clk 0:02:16]} 22. Be3 {[%clk 0:01:51]}  Bd5 {[%clk 0:02:13]} 23. Bc5 {[%clk 0:01:44]}  Rfe8 {[%clk 0:02:13]} 24. a4 {[%clk 0:01:42]}  Kf7 {[%clk 0:02:10]} 25. b4 {[%clk 0:01:41]}  Ke6 {[%clk 0:02:09]} 26. a5 {[%clk 0:01:34]}  g5 {[%clk 0:02:07]} 27. Rad1 {[%clk 0:01:32]}  Rf8 {[%clk 0:02:06]} 28. Rd4 {[%clk 0:01:28]}  Rf5 {[%clk 0:02:04]} 29. Rg4 {[%clk 0:01:23]}  Rh8 {[%clk 0:01:58]} 30. Re3 {[%clk 0:01:07]}  Rh4 {[%clk 0:01:58]} 31. Bd4 {[%clk 0:01:02]}  Rxg4 {[%clk 0:01:56]} 32. hxg4 {[%clk 0:01:02]}  Rf4 {[%clk 0:01:57]} 33. Bc5 {[%clk 0:00:48]}  Rxg4 {[%clk 0:01:57]} 34. Rg3 {[%clk 0:00:45]}  Rxg3 {[%clk 0:01:55]} 35. fxg3 {[%clk 0:00:45]}  Kxe5 {[%clk 0:01:55]} 36. Kf2 {[%clk 0:00:44]}  g4 {[%clk 0:01:55]} 37. Bf8 {[%clk 0:00:39]}  g6 {[%clk 0:01:54]} 38. Bc5 {[%clk 0:00:39]}  Ke4 {[%clk 0:01:54]} 39. Bf8 {[%clk 0:00:39]}  Kd3 {[%clk 0:01:55]} 40. Bc5 {[%clk 0:00:39]}  Kc4 {[%clk 0:01:53]} 41. Bf8 {[%clk 0:00:39]}  Be6 {[%clk 0:01:53]} 42. Bc5 {[%clk 0:00:40]}  Bf5 {[%clk 0:01:53]} 43. Be7 {[%clk 0:00:40]}  Kd5 {[%clk 0:01:54]} 44. Bc5 {[%clk 0:00:41]}  Ke4 {[%clk 0:01:53]} 45. Bf8 {[%clk 0:00:41]}  Kd5 {[%clk 0:01:53]} 46. Bc5 {[%clk 0:00:42]}  Ke6 {[%clk 0:01:52]} 47. Bf8 {[%clk 0:00:43]}  Kd5 {[%clk 0:01:52]} 48. Bc5 {[%clk 0:00:43]} 1/2-1/2


[Site "https://www.chess.com"]

[Event "Titled Tuesday Blitz March 14 Early 2023"]
[White "Lesbekova, Assel"]
[Black "Bruedigam, Martin"]
[WhiteFideId "13713248"]
[BlackFideId "24608033"]
[WhiteElo "1799"]
[BlackElo "2331"]
[Result "0-1"]
[Round "11"]
[TimeControl "180+2"]
[Date "2023.03.14"]
[WhiteClock "0:00:07"]
[BlackClock "0:01:06"]

1. e4 {[%clk 0:02:59]}  c6 {[%clk 0:02:51]} 2. d4 {[%clk 0:02:59]}  d5 {[%clk 0:02:50]} 3. Nc3 {[%clk 0:02:59]}  dxe4 {[%clk 0:02:46]} 4. Nxe4 {[%clk 0:03:00]}  Nf6 {[%clk 0:02:45]} 5. Ng3 {[%clk 0:03:00]}  g6 {[%clk 0:02:44]} 6. h4 {[%clk 0:03:01]}  h5 {[%clk 0:02:41]} 7. c3 {[%clk 0:02:57]}  Bg7 {[%clk 0:02:35]} 8. Bg5 {[%clk 0:02:58]}  Qb6 {[%clk 0:02:34]} 9. Qd2 {[%clk 0:02:57]}  Be6 {[%clk 0:02:31]} 10. Nf3 {[%clk 0:02:55]}  Nbd7 {[%clk 0:02:31]} 11. Bd3 {[%clk 0:02:55]}  Bd5 {[%clk 0:02:28]} 12. Be2 {[%clk 0:02:43]}  e6 {[%clk 0:02:26]} 13. c4 {[%clk 0:02:38]}  Ne4 {[%clk 0:02:20]} 14. Nxe4 {[%clk 0:02:30]}  Bxe4 {[%clk 0:02:21]} 15. Be3 {[%clk 0:02:29]}  O-O {[%clk 0:02:16]} 16. O-O {[%clk 0:02:15]}  Bxf3 {[%clk 0:02:11]} 17. Bxf3 {[%clk 0:02:15]}  Qc7 {[%clk 0:02:10]} 18. Bf4 {[%clk 0:02:10]}  Qb6 {[%clk 0:02:08]} 19. Bd6 {[%clk 0:02:01]}  Rfe8 {[%clk 0:02:07]} 20. c5 {[%clk 0:01:59]}  Qd8 {[%clk 0:02:07]} 21. g3 {[%clk 0:01:58]}  Nf6 {[%clk 0:02:07]} 22. Rfe1 {[%clk 0:01:53]}  Bf8 {[%clk 0:02:05]} 23. Be5 {[%clk 0:01:38]}  Bg7 {[%clk 0:02:05]} 24. b4 {[%clk 0:01:30]}  a6 {[%clk 0:02:04]} 25. a4 {[%clk 0:01:29]}  Nd5 {[%clk 0:02:01]} 26. Bxg7 {[%clk 0:01:04]}  Kxg7 {[%clk 0:02:01]} 27. Reb1 {[%clk 0:01:04]}  Qd7 {[%clk 0:02:01]} 28. Bxd5 {[%clk 0:00:56]}  Qxd5 {[%clk 0:02:00]} 29. b5 {[%clk 0:00:56]}  axb5 {[%clk 0:01:56]} 30. axb5 {[%clk 0:00:57]}  Rxa1 {[%clk 0:01:56]} 31. Rxa1 {[%clk 0:00:58]}  Rd8 {[%clk 0:01:56]} 32. bxc6 {[%clk 0:00:55]}  bxc6 {[%clk 0:01:56]} 33. Rd1 {[%clk 0:00:44]}  e5 {[%clk 0:01:55]} 34. Qb4 {[%clk 0:00:34]}  exd4 {[%clk 0:01:53]} 35. Rd3 {[%clk 0:00:34]}  Rd7 {[%clk 0:01:52]} 36. Kh2 {[%clk 0:00:33]}  Qe4 {[%clk 0:01:48]} 37. Qa3 {[%clk 0:00:33]}  Rd5 {[%clk 0:01:45]} 38. Rf3 {[%clk 0:00:22]}  d3 {[%clk 0:01:42]} 39. Qc3+ {[%clk 0:00:18]}  Kg8 {[%clk 0:01:23]} 40. Qf6 {[%clk 0:00:18]}  Qe6 {[%clk 0:01:13]} 41. Qf4 {[%clk 0:00:07]}  d2 {[%clk 0:01:11]} 42. Qb8+ {[%clk 0:00:07]}  Kg7 {[%clk 0:01:08]} 43. Re3 {[%clk 0:00:08]}  Qxe3 {[%clk 0:01:06]} 44. fxe3 {[%clk 0:00:07]}  d1=Q {[%clk 0:01:06]} 0-1


[Site "https://www.chess.com"]